Cogmind - Beta 13 --- EXPLORER MODE // 2024.05.09 @ 16:03:13 Player: tcfire Result: Destroyed by D-53 Grenadier with Mini Grenade Launcher Performance ------------- Evolutions (3) 1500 Regions Visited (9) 1800 Robots Destroyed (154) 770 Value Destroyed (4966) 4966 Prototype IDs (6) 120 Alien Tech Used (0) 0 Bonus (1673) 1673 TOTAL SCORE: 10829 Bonus ------- High Alert Combat Kills 241 Follower Combat Kills 32 Entered Garrisons 400 Used RIF Installer 1000 Cogmind --------- Core Integrity 0/700 Matter 804/950 Energy 117/190 System Corruption 10% Temperature Cool (0) Movement Core (1900) Ox37 Location -7/Factory Parts ------- > --- POWER (1) -------- Light Quantum Reactor > --- PROPULSION (3) --- (None) > --- UTILITY (6) ------ Improved Heat Sink Huge Storage Unit High-capacity Matter Pod Compact Matter Pod Compact Matter Pod Compact Matter Pod > --- WEAPON (4) ------- Plasma Rifle Proton Missile Launcher > --- INVENTORY (25) --- Improved Deuterium Engine Reinforced Deuterium Engine Armored Huge Wheel Large Battery (200) Compact Matter Pod (148) Launcher Loader Advanced ECM Suite Shock Absorption System Heavy Phase Cannon Rocket Launcher Rocket Launcher Rocket Launcher Peak State ------------ > --- POWER ------------ Reinforced Deuterium Engine > --- PROPULSION ------- Wheel Armored Huge Wheel > --- UTILITY ---------- Armored Scrap Engine Huge Storage Unit Medium Matter Pod Machine Analyzer Improved Shield Generator > --- WEAPON ----------- Coil Gun Coil Gun Coil Gun Coil Gun > --- INVENTORY -------- Ion Engine Ion Engine Improved Ion Engine Improved Ion Engine Light Deuterium Engine Wheel Armored Wheel Armored Huge Wheel Armored Huge Wheel Heat Sink Heat Sink Improved Heat Sink Large Battery Matter Filter Advanced ECM Suite Shock Absorption System Improved Field Recycling Unit Minigun Minigun Minigun [Rating: 65] Favorites ----------- Power Improved Ion Engine Engine Improved Ion Engine Reactor Light Antimatter Reactor Propulsion Compact Wheel Treads Light Treads Wheel Compact Wheel Utility Machine Analyzer Device Improved Heat Sink Storage Huge Storage Unit Processor Machine Analyzer Hackware Relay Coupler [Sentry] Protection Hardened Medium Armor Plating Weapon Minigun Energy Gun Plasma Rifle Energy Cannon Advanced Beam Cannon Ballistic Gun Minigun Launcher Mini Grenade Launcher Special Weapon Mining Laser Build | -11 -10 -10 -9 -9 -9 -9 -7 -7 -7 ------- Run | Yrd Mat Min Mat Sto Gar Rec Fac Gar Fac Slots Evolved 7 | . 1 . 2 . . . 4 . . Power . | . . . . . . . . . . Propulsion 1 | . . . . . . . 1 . . Utility 4 | . 1 . 1 . . . 2 . . Weapon 2 | . . . 1 . . . 1 . . Parts Attached 124 | 5 8 4 12 10 2 10 48 18 7 Power 11 | 1 1 1 1 1 . 1 1 3 1 Engine 8 | 1 1 1 1 1 . 1 1 1 . Core . | . . . . . . . . . . Reactor 3 | . . . . . . . . 2 1 Propulsion 23 | 2 2 . 2 1 2 2 10 1 1 Treads 3 | 2 . . . . . . . . 1 Leg . | . . . . . . . . . . Wheel 20 | . 2 . 2 1 2 2 10 1 . Hover . | . . . . . . . . . . Flight . | . . . . . . . . . . Utility 39 | 2 2 . 2 2 . 2 19 6 4 Device 22 | 1 1 . 1 1 . 1 14 3 . Storage 13 | 1 1 . . 1 . . 4 2 4 Processor 2 | . . . 1 . . 1 . . . Hackware 1 | . . . . . . . 1 . . Protection 1 | . . . . . . . . 1 . Artifact . | . . . . . . . . . . Weapon 51 | . 3 3 7 6 . 5 18 8 1 Energy Gun 8 | . . 1 2 2 . . 1 2 . Energy Cannon 3 | . . . . 1 . . 2 . . Ballistic Gun 24 | . 3 1 3 2 . 1 12 2 . Ballistic Cannon . | . . . . . . . . . . Launcher 15 | . . . 2 1 . 4 3 4 1 Special Weapon 1 | . . 1 . . . . . . . Impact Weapon . | . . . . . . . . . . Slashing Weapon . | . . . . . . . . . . Piercing Weapon . | . . . . . . . . . . Special Melee Weapon . | . . . . . . . . . . Unidentified Prototypes 6 | . . . . 5 . . 1 . . Parts Lost 41 | . 1 2 . 2 3 3 16 8 6 Power 5 | . 1 1 . . . 1 1 1 . Propulsion 12 | . . 1 . 1 2 . 4 2 2 Utility 12 | . . . . 1 . 1 6 2 2 Weapon 12 | . . . . . 1 1 5 3 2 Highest Loss Streak 9 | . 1 1 . 2 2 1 9 7 6 To Critical Strikes 1 | . . . . . 1 . . . . Average Slot Usage (%) 87 | . 69 97 92 89 83 86 86 93 78 Engine 8 | . 12 11 10 10 10 9 6 5 5 Wheel 17 | . 11 23 17 20 19 20 17 16 10 Device 14 | . 13 25 20 10 10 6 15 16 13 Storage 11 | . 12 12 10 10 10 10 12 15 7 Processor 7 | . . . 6 10 10 10 7 7 5 Energy Gun 3 | . . 1 11 . . . 1 4 7 Energy Cannon 2 | . . . . 6 10 2 1 3 . Ballistic Gun 11 | . 10 13 15 13 10 4 14 6 13 Launcher 8 | . . . 2 9 3 22 8 12 7 Naked Turns . | . . . . . . . . . . Heaviest Build 137 | 16 50 52 59 100 100 99 136 134 137 Greatest Support 48 | 40 40 26 32 32 32 24 48 48 26 Greatest Overweight (x) 13 | 5 4 3 3 3 4 4 7 5 13 Average Overweight (x) 2 | 1 1 1 2 1 3 3 2 2 5 Largest Inventory Capacity 25 | 10 20 20 20 25 25 25 25 25 25 Average Capacity 22 | 9 15 20 20 21 25 25 25 25 25 Most Carried 25 | 3 7 6 20 19 17 25 25 19 19 Average Carried 15 | 1 3 4 13 15 16 21 19 13 17 Final Capacity 25 | 10 20 20 20 25 25 25 25 25 25 Final Carried 21 | 2 4 6 19 15 17 21 13 17 14 Scrap Engine Consumption 4 | . . . . . . . 4 . . Class Distribution -------------------- 43% | Hacker-Skirmisher 25% | Hacker-Tank 20% | Hacker-Mutant 7% | Hacker-Gunner Dominant Class ---------------- Hacker-Mutant | -10/Materials Hacker-Mutant | -10/Mines Hacker-Skirmisher | -9/Materials Hacker-Skirmisher | -9/Storage Hacker-Mutant | -9/Garrison Hacker-Skirmisher | -9/Recycling Hacker-Tank | -7/Factory Hacker-Tank | -7/Garrison Hacker-Gunner | -7/Factory Resources | -11 -10 -10 -9 -9 -9 -9 -7 -7 -7 ----------- Run | Yrd Mat Min Mat Sto Gar Rec Fac Gar Fac Matter Collected 4302 | 145 255 103 518 571 272 169 1156 1099 14 Remotely 574 | . . . 471 103 . . . . . Salvage Created 5149 | . 155 58 1005 865 618 273 1779 184 212 Parts 290 | . 13 5 56 49 49 13 84 17 4 Haulers Intercepted . | . . . . . . . . . . Recyclers Shooed 7 | . . 1 3 . . 1 2 . . Parts Field Recycled . | . . . . . . . . . . Retrieved Matter . | . . . . . . . . . . Parts Self-Destructed . | . . . . . . . . . . Prevented . | . . . . . . . . . . Kills | -11 -10 -10 -9 -9 -9 -9 -7 -7 -7 ------- Run | Yrd Mat Min Mat Sto Gar Rec Fac Gar Fac Combat Hostiles Destroyed 117 | . . 2 19 18 25 5 32 9 7 Guns 56 | . . 2 18 5 3 3 18 1 6 Cannons 19 | . . . . 1 9 1 7 1 . AOE 40 | . . . 1 12 13 1 6 6 1 Classes Destroyed 15 | . 3 2 4 1 . 1 2 . 2 Worker 11 | . . . 4 2 . . 5 . . Builder 6 | . 1 . 1 2 . 1 1 . . Recycler 8 | . 1 . 2 2 . 1 2 . . Mechanic 1 | . . . . . . . 1 . . Operator 2 | . . . 1 1 . . . . . Watcher 15 | . 3 . 3 2 . . 6 1 . Swarmer 25 | . . 1 8 . 10 1 3 2 . Grunt 51 | . . 1 4 10 11 . 20 5 . Brawler 2 | . . . . 1 . . 1 . . Duelist 1 | . . . 1 . . . . . . Sentry 27 | . . . 6 7 4 3 5 2 . Demolisher 1 | . . . . . . . . . 1 Hunter 1 | . . . . . . . 1 . . Programmer 3 | . . . . . . 1 2 . . Assembled 6 | . . . . . . . . . 6 Best Kill Streak 15 | . 2 1 4 15 8 4 9 7 7 Combat Bots Only 10 | . . 1 4 10 8 4 5 7 7 Max Kills in Single Turn 5 | . 2 1 2 5 3 1 5 2 2 Gunslinging 1 | . . . 1 . . . . . . Exploded 3 | . . . 1 2 3 1 1 2 1 Melee . | . . . . . . . . . . Uniques/NPCs Destroyed . | . . . . . . . . . . Combat | -11 -10 -10 -9 -9 -9 -9 -7 -7 -7 -------- Run | Yrd Mat Min Mat Sto Gar Rec Fac Gar Fac Hostile Shots Fired 1001 | . . 8 59 45 54 23 571 186 55 Missed 300 | . . 3 15 14 20 6 172 58 12 Damage Taken 5483 | . 39 225 344 349 315 206 2540 874 591 Core 965 | . . . 80 58 57 60 455 221 34 Absorbed by Shields 330 | . . . . . . . 330 . . Ignored by Resistances 3386 | . 22 23 211 218 201 81 1796 457 377 Regen/Repaired (Parts) 215 | . . . . 169 . . 46 . . Core Remaining (%) 78 | 100 . 100 . . . 36 . . . Volleys Fired 238 | . 7 12 54 28 35 6 66 22 8 Largest 4 | . 2 2 3 3 3 3 4 4 4 Hottest 246 | . 40 120 166 126 126 118 246 189 177 Shots Fired 647 | . 8 17 154 83 83 17 191 64 30 Gun 428 | . 8 14 154 46 35 10 124 15 22 Cannon 87 | . . . . 10 35 5 25 12 . Launcher 129 | . . . . 27 13 2 42 37 8 Special 3 | . . 3 . . . . . . . Kinetic 351 | . 8 14 99 46 35 10 110 15 14 Thermal 132 | . . 3 34 10 35 5 25 12 8 Explosive 121 | . . . . 27 13 2 42 37 . Electromagnetic 43 | . . . 21 . . . 14 . 8 Robot Hit Streak 33 | . 5 8 17 25 26 27 29 15 33 Robot Miss Streak 5 | . 1 1 5 2 2 . 3 2 . Penetration Max 1 | . . . . . . . 1 . 1 Secondary Targets 9 | . . . 3 . . . 6 . . Max Gunslinging Chain 1 | . . . 1 . . . 1 . . Shots Hit Robots 432 | . 6 6 104 60 44 13 143 36 20 Core Hits 257 | . 6 4 39 46 33 7 83 25 14 Critical Kills 2 | . . . . . . . 1 1 . Critical Parts Destroyed . | . . . . . . . . . . Critical Strikes 4 | . . . 2 . . . 1 1 . Burn 2 | . . . 2 . . . . . . Meltdown 2 | . . . . . . . 1 1 . Melee Attacks . | . . . . . . . . . . Impact . | . . . . . . . . . . Slashing . | . . . . . . . . . . Piercing . | . . . . . . . . . . Sneak Attacks . | . . . . . . . . . . Combat Hostiles . | . . . . . . . . . . Follow-up Attacks . | . . . . . . . . . . Damage Inflicted 12715 | . 98 100 1920 2002 1460 419 4288 1439 989 Guns 5631 | . 98 66 1737 549 242 112 2086 280 461 Cannons 1702 | . . . . 184 476 111 656 275 . Explosions 5060 | . . . 133 1269 742 37 1467 884 528 Melee . | . . . . . . . . . . Ramming 322 | . . 34 50 . . 159 79 . . Kinetic 4646 | . 98 66 1163 549 242 112 1850 280 286 Thermal 2390 | . . . 513 184 476 111 656 275 175 Explosive 4399 | . . . . 1269 742 37 1467 884 . Electromagnetic 958 | . . . 194 . . . 236 . 528 Impact . | . . . . . . . . . . Slashing . | . . . . . . . . . . Piercing . | . . . . . . . . . . Highest Corruption 10 | . . 5 . . . 5 1 5 10 Average Corruption 2 | . . 2 . . . 2 1 2 5 Corruption Purged . | . . . . . . . . . . Corruption Blocked . | . . . . . . . . . . Effects 38 | . . 4 . . . 8 9 13 4 Message Errors 8 | . . 1 . . . 3 . 3 1 Matter Fused 11 | . . 1 . . . 1 3 4 2 Heat Flow Errors 7 | . . 1 . . . 1 2 3 . Energy Discharges 3 | . . . . . . 2 . 1 . Parts Fused 3 | . . 1 . . . . 1 1 . Data Loss (minor) 2 | . . . . . . . . 1 1 Data Loss (major) 3 | . . . . . . 1 2 . . Alerts 1 | . . . . . . . 1 . . Overload Shots . | . . . . . . . . . . Overflow Damage 251 | . . . . 33 41 23 126 28 . Projectiles 21 | . . . . . . 11 10 . . Explosions 194 | . . . . 33 41 . 92 28 . Melee 36 | . . . . . . 12 24 . . Knockbacks 2 | . . . 1 . . . 1 . . Impact 2 | . . . 1 . . . 1 . . Kinetic . | . . . . . . . . . . Secondary . | . . . . . . . . . . Self-Inflicted Damage 661 | . . 16 43 87 58 78 296 29 54 Shots 28 | . . . 1 4 2 . 13 2 6 Rammed 19 | . . 4 6 . . 7 2 . . Targets Rammed 19 | . . 4 6 . . 7 2 . . Kicked . | . . . . . . . . . . Crushed . | . . . . . . . . . . Highest Temperature 611 | . . 91 201 90 108 147 611 219 219 Average Temperature 82 | . . 57 34 19 31 72 142 47 74 Received Heat Transfer 2362 | . . 18 150 144 153 36 1415 282 164 Effects 12 | . . . . . . . 12 . . Shutdowns 3 | . . . . . . . 3 . . Energy Bleed 3 | . . . . . . . 3 . . Interference 2 | . . . . . . . 2 . . Matter Decay 2 | . . . . . . . 2 . . Short Circuit 1 | . . . . . . . 1 . . Damage (core) 1 | . . . . . . . 1 . . Siege Activations . | . . . . . . . . . . Robots Corrupted . | . . . . . . . . . . Combat Hostiles . | . . . . . . . . . . Parts Fried 2 | . . . . . . 2 . . . Impact Corruptions 5 | . . . . . . 2 3 . . Robots Melted 2 | . . . . . . . 1 1 . Combat Hostiles 2 | . . . . . . . 1 1 . Parts Melted 2 | . . . 2 . . . . . . Heat Transferred 3959 | . . . 1210 333 832 185 703 296 400 Parts Sabotaged . | . . . . . . . . . . Parts Stolen . | . . . . . . . . . . Parts Stripped . | . . . . . . . . . . Power Chain Reactions 2 | . . . 2 . . . . . . Alert | -11 -10 -10 -9 -9 -9 -9 -7 -7 -7 ------- Run | Yrd Mat Min Mat Sto Gar Rec Fac Gar Fac Peak Influence 910 | . 26 90 347 646 910 375 427 318 130 Initial 295 | . . . 24 16 241 295 101 68 115 Average 225 | . 14 13 130 404 664 178 125 202 113 Maximum Alert Level 3 | . . . 1 2 3 1 2 1 . Low Security (%) 55 | 100 100 100 70 11 . 56 72 43 100 Level 1 27 | . . . 29 30 21 43 24 56 . Level 2 7 | . . . . 58 15 . 3 . . Level 3 8 | . . . . . 63 . . . . Level 4 . | . . . . . . . . . . Level 5 . | . . . . . . . . . . High Security . | . . . . . . . . . . Max Security . | . . . . . . . . . . Squads Dispatched 20 | . . . 2 3 . . 15 . . Investigation 5 | . . . . . . . 5 . . Extermination 4 | . . . . . . . 4 . . Reinforcement 8 | . . . 2 3 . . 3 . . Assault . | . . . . . . . . . . Garrison 3 | . . . . . . . 3 . . Intercept . | . . . . . . . . . . Searches Triggered . | . . . . . . . . . . Construction Impeded 2 | . . . . 1 . . 1 . . Haulers Reinforced . | . . . . . . . . . . Active Scanning Responses . | . . . . . . . . . . Cargo Convoy Interrupts 1 | . . . . . . . 1 . . Stealth | -11 -10 -10 -9 -9 -9 -9 -7 -7 -7 --------- Run | Yrd Mat Min Mat Sto Gar Rec Fac Gar Fac Distress Signals 11 | . . . 4 3 . . 3 1 . Communications Jammed . | . . . . . . . . . . Distress Signals . | . . . . . . . . . . Times Spotted 147 | . 3 4 26 20 22 4 45 9 14 Peak Tracking Total 7 | . 2 2 4 4 5 3 6 7 5 Tactical Retreats 4 | . . . 1 1 . . 2 . . Traps | -11 -10 -10 -9 -9 -9 -9 -7 -7 -7 ------- Run | Yrd Mat Min Mat Sto Gar Rec Fac Gar Fac Traps Triggered 9 | . 2 . . 1 2 . 1 2 1 Indirectly 1 | . . . . . . . . . 1 Trap Hack Attempts . | . . . . . . . . . . Triggered . | . . . . . . . . . . Disarmed . | . . . . . . . . . . Reprogrammed . | . . . . . . . . . . Reused . | . . . . . . . . . . Traps Extracted . | . . . . . . . . . . Installed . | . . . . . . . . . . Triggered 2 | . . . . . . . 2 . . Machines | -11 -10 -10 -9 -9 -9 -9 -7 -7 -7 ---------- Run | Yrd Mat Min Mat Sto Gar Rec Fac Gar Fac Machines Disabled 20 | . . . 3 4 1 . 9 3 . Max in Single Turn 2 | . . . 2 1 1 . 2 1 . Garrison Relay 1 | . . . . . 1 . . . . Machines Repaired . | . . . . . . . . . . Machines Dismantled . | . . . . . . . . . . Machines Sabotaged . | . . . . . . . . . . Overloaded Fab Kills . | . . . . . . . . . . Hacking | -11 -10 -10 -9 -9 -9 -9 -7 -7 -7 --------- Run | Yrd Mat Min Mat Sto Gar Rec Fac Gar Fac Machines Accessed 15 | . 1 . 2 3 2 3 4 . . Terminals 3 | . . . . . 2 1 . . . Fabricators 2 | . . . . . . . 2 . . Repair Stations 5 | . 1 . 1 2 . . 1 . . Recycling Units 2 | . . . . . . 2 . . . Scanalyzers 1 | . . . 1 . . . . . . Garrison Access 2 | . . . . 1 . . 1 . . Total Hacks 38 | . 2 . 5 9 3 9 10 . . Successful 24 | . 2 . 3 8 1 4 6 . . Failed 14 | . . . 2 1 2 5 4 . . Catastrophic 1 | . . . . . . 1 . . . Database Lockouts . | . . . . . . . . . . Manual . | . . . . . . . . . . Terminals 6 | . . . . . 3 3 . . . Fabricators 6 | . . . . . . . 6 . . Repair Stations 15 | . 2 . 3 7 . . 3 . . Recycling Units 6 | . . . . . . 6 . . . Scanalyzers 2 | . . . 2 . . . . . . Garrison Access 3 | . . . . 2 . . 1 . . Terminal Hacks 1 | . . . . . 1 . . . . Garrison Registry 1 | . . . . . 1 . . . . Fabricator Hacks 2 | . . . . . . . 2 . . Load Schematic 1 | . . . . . . . 1 . . Build 1 | . . . . . . . 1 . . Repair Station Hacks 13 | . 2 . 1 7 . . 3 . . Scan Component 8 | . 1 . 1 4 . . 2 . . Repair 4 | . . . . 3 . . 1 . . Refit 1 | . 1 . . . . . . . . Recycling Unit Hacks 4 | . . . . . . 4 . . . Recycle Component 2 | . . . . . . 2 . . . Process 1 | . . . . . . 1 . . . Retrieve Components 1 | . . . . . . 1 . . . Scanalyzer 2 | . . . 2 . . . . . . Insert Component 1 | . . . 1 . . . . . . Analyze 1 | . . . 1 . . . . . . Garrison Access Hacks 2 | . . . . 1 . . 1 . . Unlock Access 2 | . . . . 1 . . 1 . . Unauthorized Hacks . | . . . . . . . . . . Terminals . | . . . . . . . . . . Fabricators . | . . . . . . . . . . Repair Stations . | . . . . . . . . . . Recycling Units . | . . . . . . . . . . Scanalyzers . | . . . . . . . . . . Garrison Access . | . . . . . . . . . . Data Cores Recovered . | . . . . . . . . . . Used . | . . . . . . . . . . Hacking Detections 11 | . . . 1 2 1 3 4 . . Full Trace Events 7 | . . . 1 1 . 2 3 . . Feedback Events . | . . . . . . . . . . Feedback Blocked . | . . . . . . . . . . Robot Schematics Acquired . | . . . . . . . . . . Robots Built . | . . . . . . . . . . Authchips . | . . . . . . . . . . Time . | . . . . . . . . . . Total Robot Build Rating . | . . . . . . . . . . Part Schematics Acquired 1 | . . . 1 . . . . . . Parts Built 2 | . . . . . . . 2 . . Authchips . | . . . . . . . . . . Time 35 | . . . . . . . 35 . . Total Part Build Rating 12 | . . . . . . . 12 . . Parts Repaired 4 | . . . . 3 . . 1 . . Time 118 | . . . . 102 . . 16 . . Parts Recycled 2 | . . . . . . 2 . . . Recycled Matter 39 | . . . . . . 39 . . . Retrieved Matter . | . . . . . . . . . . Retrieved Components 1 | . . . . . . 1 . . . Parts Scanalyzed 1 | . . . 1 . . . . . . Part Schematics Acquired 1 | . . . 1 . . . . . . Parts Damaged . | . . . . . . . . . . Bothacking | -11 -10 -10 -9 -9 -9 -9 -7 -7 -7 ------------ Run | Yrd Mat Min Mat Sto Gar Rec Fac Gar Fac Used RIF Installer 2 | . . . . . 1 . . 1 . Signal Jammer 1 | . . . . . . . . 1 . Robots Hacked . | . . . . . . . . . . Non-combat . | . . . . . . . . . . Combat . | . . . . . . . . . . Robot Hacks Applied . | . . . . . . . . . . Relay Couplers Released 4 | . . . . . 4 . . . . Machine Destruction 4 | . . . . . 4 . . . . Attached 1 | . . . . . . . 1 . . Fabnet Peak Effective % . | . . . . . . . . . . Robots Rewired 1 | . . . . . . 1 . . . Allies Hacked . | . . . . . . . . . . Hacks Repelled . | . . . . . . . . . . Allies | -11 -10 -10 -9 -9 -9 -9 -7 -7 -7 -------- Run | Yrd Mat Min Mat Sto Gar Rec Fac Gar Fac Total Allies 2 | . . 1 . . . 1 . . . Largest Group 1 | . . 1 1 . . 1 . . . Highest-Rated Group 31 | . . 31 31 . . 8 . . . Highest-Rated Ally 31 | . . 31 31 . . 8 . . . Total Orders . | . . . . . . . . . . Ally Attacks 9 | . . 8 . . . 1 . . . Total Damage 135 | . . 123 . . . 12 . . . Kills 2 | . . 2 . . . . . . . Allies Corrupted . | . . . . . . . . . . Allies Melted . | . . . . . . . . . . Intel | -11 -10 -10 -9 -9 -9 -9 -7 -7 -7 ------- Run | Yrd Mat Min Mat Sto Gar Rec Fac Gar Fac Robot Analysis Total . | . . . . . . . . . . Derelict Logs Recovered . | . . . . . . . . . . Drone Launches . | . . . . . . . . . . Drone Recoveries . | . . . . . . . . . . Exploration | -11 -10 -10 -9 -9 -9 -9 -7 -7 -7 ------------- Run | Yrd Mat Min Mat Sto Gar Rec Fac Gar Fac Turns Passed 7961 | 143 403 224 1487 689 1066 930 2062 765 192 Spaces Moved 5013 | 48 292 164 960 380 669 637 1316 462 85 Core 32 | 32 . . . . . . . . . Treads 95 | 16 79 . . . . . . . . Legs . | . . . . . . . . . . Wheels 4886 | . 213 164 960 380 669 637 1316 462 85 Hover . | . . . . . . . . . . Flight . | . . . . . . . . . . Fastest Speed 50 | 50 95 105 115 115 140 135 116 130 165 Average Speed 132 | 180 126 107 129 125 141 137 127 140 166 Slowest Speed 300 | 300 160 145 145 145 145 140 205 165 275 Overloaded Moves . | . . . . . . . . . . Propulsion Burnouts . | . . . . . . . . . . Robots Hopped . | . . . . . . . . . . Cave-ins Triggered 2 | . . 1 . . . . . 1 . Exploration Rate (%) 43 | 5 55 35 47 51 76 84 31 45 3 Regions Visited 9 Branch Regions 3 Pre-discovered Areas . | . . . . . . . . . . Known Exits Taken 7 | 1 1 1 1 1 . 1 1 . . Unknown Exits Taken . | . . . . . . . . . . Scrap Searched . | . . . . . . . . . . Spaces Dug 3 | . . 3 . . . . . . . Terrain Destroyed 508 | . . 3 15 177 33 14 140 126 . Melee . | . . . . . . . . . . Projectile 8 | . . 3 . . . . 3 2 . AOE 500 | . . . 15 177 33 14 137 124 . Terrain Rammed . | . . . . . . . . . . Walls Destroyed . | . . . . . . . . . . Machines Disabled . | . . . . . . . . . . Actions | -11 -10 -10 -9 -9 -9 -9 -7 -7 -7 --------- Run | Yrd Mat Min Mat Sto Gar Rec Fac Gar Fac Total 5894 | 105 319 186 1105 543 725 678 1579 539 115 Wait 284 | 46 . . 48 98 . . 80 . 12 Move 5004 | 47 291 163 959 380 667 636 1316 460 85 Hop . | . . . . . . . . . . Pick Up 129 | 7 9 3 21 13 4 13 40 17 2 Fast Attach . | . . . . . . . . . . Attach 79 | 5 7 1 4 6 2 4 31 14 5 Detach 12 | . 2 . 1 1 . . 2 6 . Swap 45 | . 1 3 8 4 . 6 17 4 2 Drop 58 | . 2 . 4 13 . 5 25 8 1 Fire 238 | . 7 12 54 28 35 6 66 22 8 Melee . | . . . . . . . . . . Ram 19 | . . 4 6 . . 7 2 . . Kick . | . . . . . . . . . . Crush . | . . . . . . . . . . Escape Stasis 24 | . . . . . 16 . . 8 . Rewire 2 | . . . . . 1 1 . . . Trap . | . . . . . . . . . . Miscellaneous . | . . . . . . . . . . Route ------- -11/Scrapyard -10/Materials -10/Mines -9/Materials (discovered 2 exits: *Mat / *Sto) -9/Storage -9/Garrison (discovered 3 exits: *Rec x3) -9/Recycling -7/Factory (discovered 2 exits: *Low / Gar) -7/Garrison -7/Factory History --------- Turn | Location | Event 23 | -11/Scrapyard | Identified exit to Materials 23 | -11/Scrapyard | Discovered exit to Materials (range 16) 144 | -11/Scrapyard | Entered Materials 144 | -10/Materials | Evolved 1 slot: Utility x1 300 | -10/Materials | Build established: Hacker-Mutant 511 | -10/Materials | Identified exit to Mines 511 | -10/Materials | Discovered exit to Mines (range 12) 547 | -10/Materials | Entered Mines 559 | -10/Mines | Received a Mining Laser from a helpful Derelict 599 | -10/Mines | Crushed by falling debris 762 | -10/Mines | Identified exit to Materials 762 | -10/Mines | Discovered exit to Materials (range 6) 771 | -10/Mines | Entered Materials 771 | -9/Materials | Accompanied by 1 ally 771 | -9/Materials | Evolved 2 slots: Utility x1, Weapon x1 1139 | -9/Materials | Build established: Hacker-Gunner 1512 | -9/Materials | Identified exit to Storage 1512 | -9/Materials | Discovered exit to Storage (range 12) 1626 | -9/Materials | Identified exit to Materials 1626 | -9/Materials | Discovered exit to Materials (range 3) 1777 | -9/Materials | Build established: Hacker-Skirmisher 2258 | -9/Materials | Entered Storage 2383 | -9/Storage | Destroyed 10 combat bots 2483 | -9/Storage | Repaired Rocket Launcher 2641 | -9/Storage | Repaired Imp. Heat Sink 2676 | -9/Storage | Repaired Imp. Ion Engine 2947 | -9/Storage | Identified exit to Garrison 2947 | -9/Storage | Entered Garrison 2973 | -9/Garrison | Triggered checkpoint 3093 | -9/Garrison | Installed Relay Interface Framework 3136 | -9/Garrison | Triggered checkpoint 3171 | -9/Garrison | Triggered checkpoint 3219 | -9/Garrison | Destroyed 8 combat bots 3261 | -9/Garrison | Triggered checkpoint 3323 | -9/Garrison | Triggered checkpoint 3367 | -9/Garrison | Garrison Relay disabled 3434 | -9/Garrison | Identified exit to Recycling 3434 | -9/Garrison | Discovered exit to Recycling (range 11) 3567 | -9/Garrison | Triggered checkpoint 3612 | -9/Garrison | Build established: Hacker-Mutant 3665 | -9/Garrison | Discovered exit to Recycling (range 11) 3665 | -9/Garrison | Discovered exit to Recycling (range 66) 3665 | -9/Garrison | Discovered exit to Recycling (range 48) 3857 | -9/Garrison | Triggered checkpoint 3939 | -9/Garrison | Triggered checkpoint 4013 | -9/Garrison | Entered Recycling 4017 | -9/Recycling | Found Scrap Engine 4092 | -9/Recycling | Core integrity fell below 50% 4329 | -9/Recycling | Build established: Hacker-Skirmisher 4929 | -9/Recycling | Identified exit to Factory 4929 | -9/Recycling | Discovered exit to Factory (range 8) 4943 | -9/Recycling | Entered Factory 4943 | -7/Factory | Evolved 4 slots: Propulsion x1, Utility x2, Weapon x1 5139 | -7/Factory | Repaired Mni. Grenade Launcher 5602 | -7/Factory | Build established: Hacker-Tank 5859 | -7/Factory | Lost 3 parts (1u2w) 6743 | -7/Factory | Fabricated Hvy. Phase Cannon (x2) 6773 | -7/Factory | Identified exit to Lower Caves 6773 | -7/Factory | Discovered exit to Lower Caves (range 15) 6840 | -7/Factory | Core integrity fell below 50% 6845 | -7/Factory | Cargo convoy interrupted 6894 | -7/Factory | Lost 9 parts (3n4u2w) 7005 | -7/Factory | Identified exit to Garrison 7005 | -7/Factory | Entered Garrison 7020 | -7/Garrison | Triggered checkpoint 7205 | -7/Garrison | Triggered checkpoint 7331 | -7/Garrison | Triggered checkpoint 7331 | -7/Garrison | Triggered checkpoint 7371 | -7/Garrison | Destroyed 7 combat bots 7426 | -7/Garrison | Crushed by falling debris 7426 | -7/Garrison | Core integrity fell below 20% 7474 | -7/Garrison | Lost 7 parts (1p1n2u3w) 7485 | -7/Garrison | Found Launcher Loader 7494 | -7/Garrison | Found Launcher Loader 7565 | -7/Garrison | Identified exit to Factory 7565 | -7/Garrison | Discovered exit to Factory (range 13) 7633 | -7/Garrison | Triggered checkpoint 7661 | -7/Garrison | Expanded RIF knowledge: Signal Jamming 7770 | -7/Garrison | Entered Factory 7918 | -7/Factory | Assembled infested ambush trap array 7949 | -7/Factory | System corruption reached 10% 7962 | -7/Factory | Destroyed by D-53 Grenadier with Mini Grenade Launcher Last Messages --------------- Slug penetrates as-25677. G-47 Trooper destroyed. Door malfunctions. Launcher Loader destroyed. System corrupted by crushing effect (+3). C-30 ARC bursts open, deploying its payload. D-53 Grenadier unfolds itself. as-62013 destroyed. as-52872 destroyed. System corrupted: Component data lost. as-25677 destroyed. as-76255 destroyed. as-27237 destroyed. KE Penetrator destroyed. Door malfunctions. D-53 Grenadier destroyed. D-53 Grenadier misfires. The unstable cave ceiling collapses. Hvy. Machine Gun destroyed. [Achievement: 10k Club] Map ----- +----------------------------------------------------+ | #???????????????????????????????????????? | | #???????????????????????????????????????? | | """"" #???????????????????????????????????????? | | """"" #???????????????????????????????????????? | | """"" #????????????????????"""?"""????????????? | | """"" #????????????????????"""?"""????????????? | | #????????????????????"""?"""????????????? | | """"" = #???????????????????????????????????????? | | """"" #????????????????????"""?"""????????????? | | """"" #????????????????????"""?"""????????????? | | """"" #????????????????????"""?"""????????????? | | #???????????????????????????????????????? | | ###+######?????????????########??????????????????? | | ??# #??????????????????# ??????????????????? | | ??# #????????########### ???????????????????? | | # #????????# """ """ # ???????????????????? | | + #????????# """ """ # ???????????????????? | | # #????????# """ """ # ????????????????????? | | # ########## % ????????????????????? | | + = [ # ! ! %! #??##????????????????? | | # # =d ###!#????????????????? | | ??# """ !!!# [ [b !#????????????????? | | ??# """ !!!#?? = #????????????????? | | ??# """ !! #???#+## #????????????????? | | ??# ##### ## g #????????????????? | | ! @ ] #????????????????? | | #########+########### ###????????????????? | | ??????????????????# #????????????????? | | ????????"""???????# """ ! #????????????????? | | ????????"""???????# """ #????????????????? | | ????????"""???????# """ #????????????????? | | ??????????????????# """ """ #????????????????? | | ??????????????????# """T""" #????????????????? | | ??????????????????###############????????????????? | | | | | | | | | | | | | | | | | | | | | | | | | | | | | | | | | +----------------------------------------------------+ Best States ------------- Heat Dissipation 62 Energy Generation 25 Energy Capacity 490 Matter Stores 465 Matter Capacity 500 Sight Range 16 Terrain Scan Density 10 Armor Coverage 225 Resistance: KI 35 Resistance: TH 35 Resistance: EX 60 Resistance: EM 35 Resistance: I 35 Resistance: S 35 Resistance: P 35 Evasion (%) 41 Recoil Reduction 2 Matter Filtering 30 Offensive Hacking 20 Authchip Count 3 Item Schematics ----------------- Rocket Launcher | -9/Materials | Scanalyzed Robot Schematics ------------------ None Fabricated ------------ Hvy. Phase Cannon | x2 | -7/Factory | Preloaded Alien Tech Used ----------------- None Achievements -------------- 10k Club A New Friend Dramatic Entrance Challenges ------------ None Game ------ Seed CoilImprovedLauncher Manual? 0 Play Time 01:11:40 Cumulative 7.5 hours Start 2024.05.09 @ 13:00:12 End 2024.05.09 @ 16:03:13 Sessions 7 Manual Loads 0 Difficulty Explorer Special Mode None Game No. 8 Rogue 0 Adventurer 0 Explorer 8 Win Type - Total 0 Types 0/0/0/0/0/0/0/0/0 Lore% 3 Gallery% 17 Achievement% 16 Wizard Run 0 Options --------- Layout 0 ASCII 0 Keyboard 0 Movement Arrows Keybinds 0 Fullscreen 1 Font 18/SmallcapsGlow Map View 76x50 Zoom Use 0% Tactical HUD 0 Map Filters NONE Filters NONE Steam 1 RUN: 43eebc7d-8507-4fd6-843b-a18c1ef1206f